bitfinex-derivatives/quotes_BTCF0:USTF0_20250814
["timestamp","ask_amount","ask_price","bid_price","bid_amount"]
[1755189662364,0.7703145,118000.0,117990.0,0.06483569]
[1755189662568,0.7703145,118000.0,117990.0,1.59866148]
[1755189662569,0.4905866,118000.0,117990.0,1.59866148]
[1755189662774,0.55740624,118000.0,117990.0,1.59858829]
[1755189662964,0.51233624,118000.0,117990.0,1.60053721]
[1755189663370,0.51233624,118000.0,117990.0,1.61932976]
[1755189663672,0.3608,118000.0,117990.0,1.62032976]
[1755189663889,0.46650718,118000.0,117990.0,1.62032976]
[1755189664175,0.10570718,118000.0,117990.0,2.15067667]
[1755189664664,0.10570718,118000.0,117990.0,2.15167667]
[1755189665063,0.68099548,118010.0,117990.0,2.40583937]
[1755189665283,0.51157718,118010.0,118000.0,0.79296524]
[1755189665670,0.59628528,118010.0,118000.0,0.79296524]
[1755189666070,1.03460528,118010.0,118000.0,1.64960507]
[1755189666271,1.03560528,118010.0,118000.0,0.00199983]
[1755189666477,1.03560528,118010.0,118000.0,0.85663983]
[1755189666676,0.9298981,118010.0,118000.0,1.64960527]
[1755189666870,0.95083962,118010.0,118000.0,1.64960527]
[1755189667070,0.70752962,118010.0,118000.0,1.64960527]
[1755189667369,0.51251962,118010.0,118000.0,0.94135523]
[1755189667571,0.59722782,118010.0,118000.0,1.64960527]
[1755189668068,0.77148782,118010.0,118000.0,0.94135523]
[1755189668277,1.03454782,118010.0,118000.0,0.85663983]
[1755189668473,1.03554782,118010.0,118000.0,0.85663983]
[1755189668671,1.03554782,118010.0,118000.0,0.94135523]
[1755189668873,0.95083962,118010.0,118000.0,1.64960527]
[1755189669077,0.70752962,118010.0,118000.0,1.64960527]
[1755189669465,0.70752962,118010.0,118000.0,1.67216772]
[1755189669665,0.70752962,118010.0,118000.0,1.58745232]
[1755189669870,0.96649782,118010.0,118000.0,1.58745232]
[1755189670283,0.88178962,118010.0,118000.0,1.58745232]
[1755189670482,0.88178962,118010.0,118000.0,1.67216772]
[1755189670672,0.96649782,118010.0,118000.0,1.58745232]
[1755189670871,0.96649782,118010.0,118000.0,0.87920228]
[1755189671070,0.96649782,118010.0,118000.0,1.58745232]
[1755189671373,1.03554782,118010.0,118000.0,1.58745232]
[1755189671686,0.9298982,118010.0,118000.0,1.56756795]
[1755189671981,0.9298982,118010.0,118000.0,0.73081249]
[1755189672187,0.3247954,118000.0,117990.0,0.72704259]
[1755189672479,0.9289054,118000.0,117990.0,1.46602349]
[1755189672677,0.9289054,118000.0,117990.0,1.58078748]
[1755189672982,1.0345826,118000.0,117990.0,1.6001409]
[1755189673576,0.1507472,118000.0,117990.0,1.6848635]
[1755189673983,0.1507472,118000.0,117990.0,1.6858635]
[1755189674386,0.2354626,118000.0,117990.0,1.6858635]
[1755189674684,1.0345826,118000.0,117990.0,1.6011409]
[1755189674884,1.0345826,118000.0,117990.0,1.8640409]
[1755189675080,1.0345826,118000.0,117990.0,0.25542302]
[1755189675280,0.9289054,118000.0,117990.0,1.12769818]
[1755189675486,0.9289054,118000.0,117990.0,1.12869818]
[1755189675878,1.03468935,118000.0,117990.0,1.92167082]
[1755189676077,1.03468935,118000.0,117990.0,1.12869818]
[1755189676283,1.03471659,118000.0,117990.0,1.83694822]
[1755189676792,1.03471659,118000.0,117990.0,0.98386822]
[1755189676793,1.03551659,118000.0,117990.0,0.98386822]
[1755189677079,0.9297054,118000.0,117990.0,0.02019516]
[1755189677286,1.01445475,118000.0,117990.0,0.02019516]
[1755189677674,1.01445475,118000.0,117940.0,0.1883819]
[1755189677675,0.0847478,117960.0,117940.0,0.1883819]
[1755189677879,1.17406291,117960.0,117950.0,0.8526]
[1755189678086,0.9289341,117960.0,117950.0,0.8526]
[1755189678391,0.9289341,117960.0,117950.0,1.56085004]
[1755189678582,0.4990913,117950.0,117940.0,0.72712174]
[1755189678777,1.00458375,117950.0,117940.0,1.57960174]
[1755189678977,0.84419,117950.0,117940.0,1.66436024]
[1755189679191,0.84419,117950.0,117940.0,0.9561102]
[1755189679485,0.95011554,117950.0,117940.0,1.66436024]
[1755189679685,0.51179554,117950.0,117940.0,1.66436024]
[1755189679995,0.2191124,117950.0,117940.0,2.00908854]
[1755189680283,0.15124924,117960.0,117950.0,0.0855513]
[1755189680284,0.07567888,117960.0,117950.0,0.0855513]
[1755189680490,0.48154888,117970.0,117960.0,0.0847441]
[1755189680680,0.07567888,117970.0,117960.0,2.71508418]
[1755189680879,0.7892402,117990.0,117970.0,0.084737]
[1755189680880,0.04507,117980.0,117970.0,0.084737]
[1755189681080,0.04507,117980.0,117970.0,0.79298704]
[1755189681391,0.40587,117990.0,117980.0,0.0847298]
[1755189681586,0.4905926,117990.0,117980.0,1.64517984]
[1755189682196,0.40587,117990.0,117980.0,1.64417984]
[1755189682494,0.4905926,117990.0,117980.0,1.64417984]
[1755189682679,0.4905926,117990.0,117980.0,0.8522]
[1755189682879,0.7339026,117990.0,117980.0,1.56045004]
[1755189683079,0.7339026,117990.0,117980.0,1.56145004]
[1755189683393,0.7339026,117990.0,117980.0,1.64617984]
[1755189683691,0.7339026,117990.0,117980.0,0.70925004]
[1755189683893,0.7339026,117990.0,117980.0,1.56117004]
[1755189684092,0.7339026,117990.0,117980.0,1.64589984]
[1755189684295,0.64918,117990.0,117980.0,1.64589984]
[1755189684489,0.65018,117990.0,117980.0,1.64789984]
[1755189684686,0.001,117990.0,117980.0,2.00869984]
[1755189684999,0.12362909,117990.0,117980.0,2.00869984]
[1755189685394,0.04794,117990.0,117980.0,2.00769984]
[1755189687290,0.3645626,117990.0,117980.0,1.64653984]
[1755189687492,0.7253626,117990.0,117980.0,1.64653984]
[1755189687696,0.3645626,117990.0,117980.0,1.64653984]
[1755189688393,0.38574342,117990.0,117980.0,1.64653984]
[1755189688593,0.31148342,117990.0,117980.0,1.64653984]
[1755189689597,0.31148342,117990.0,117980.0,2.00733984]
[1755189689789,0.31148342,117990.0,117980.0,2.27023984]
[1755189690184,0.15384342,117990.0,117980.0,2.27023984]
[1755189690494,0.31148342,117990.0,117980.0,2.27023984]
[1755189690699,0.38574342,117990.0,117980.0,2.27023984]
[1755189691001,0.58100342,117990.0,117980.0,1.90867984]
[1755189691594,0.15384342,117990.0,117980.0,2.10911981]
[1755189691794,0.15384342,117990.0,117980.0,2.19384961]
[1755189691995,0.20558,117990.0,117980.0,2.19384961]
[1755189692501,0.5598226,117990.0,117980.0,2.19384961]
[1755189692697,0.5598226,117990.0,117980.0,1.83304961]
[1755189692892,0.9206226,117990.0,117980.0,1.83304961]
[1755189693097,0.9206226,117990.0,117980.0,0.98224961]
[1755189693299,0.9206226,117990.0,117980.0,1.83272961]
[1755189693800,0.4751,117990.0,117980.0,1.83272961]
[1755189694003,0.5598226,117990.0,117980.0,1.81284303]
[1755189694298,0.5598226,117990.0,117980.0,1.72811323]
[1755189694491,0.9206226,117990.0,117980.0,1.72811323]
[1755189694693,0.5598226,117990.0,117980.0,1.55873004]
[1755189694893,0.5598226,117990.0,117980.0,1.64345984]
[1755189695292,0.5598226,117990.0,117980.0,1.55873004]
[1755189695494,0.2432,117990.0,117980.0,1.5289068]
[1755189695695,0.2432,117990.0,117980.0,1.8897068]
[1755189695696,0.04794,117990.0,117980.0,1.8897068]
[1755189696189,0.15229758,117990.0,117980.0,1.8897068]
[1755189696395,0.15229758,117990.0,117980.0,1.8905068]
[1755189696596,0.55780511,118000.0,117990.0,0.0847226]
[1755189696798,0.55780511,118000.0,117990.0,0.79297264]
[1755189697001,0.19700511,118000.0,117990.0,1.15377264]
[1755189697402,0.92757201,118010.0,118000.0,0.0847154]
[1755189697602,0.84285951,118010.0,118000.0,1.59495129]
[1755189698203,0.84285951,118010.0,118000.0,0.88670125]
[1755189698402,0.84285951,118010.0,118000.0,1.59495129]
[1755189698594,1.19575951,118010.0,118000.0,1.59495129]
[1755189698799,1.27001951,118010.0,118000.0,1.59495129]
[1755189699000,1.27001951,118010.0,118000.0,1.61501018]
[1755189699703,1.27001951,118010.0,118000.0,1.45466324]
[1755189700013,1.27001951,118010.0,118000.0,1.51949444]
[1755189700300,0.0847154,118000.0,117990.0,0.2541632]
[1755189700494,0.9196154,118000.0,117990.0,1.72713064]
[1755189700799,0.4741,118000.0,117990.0,2.08793064]
[1755189700995,0.04694,118000.0,117990.0,2.08793064]
[1755189701196,0.04694,118000.0,117990.0,1.74650953]
[1755189701506,0.04694,118000.0,117990.0,1.74750953]
[1755189701705,0.1316554,118000.0,117990.0,1.91689272]
[1755189701895,0.20458,118000.0,117990.0,2.27769272]
[1755189702293,0.95489381,118010.0,117990.0,2.36241532]
[1755189702294,0.4294921,118010.0,117990.0,2.36241532]
[1755189702593,0.4764321,118010.0,118000.0,0.79296544]
[1755189703303,0.5611403,118010.0,118000.0,0.79296544]
[1755189703503,0.71248148,118010.0,118000.0,0.79296544]
[1755189703705,1.24557993,118010.0,118000.0,0.70825004]
[1755189703902,1.24557993,118010.0,118000.0,0.84912]
[1755189704205,1.24657564,118010.0,118000.0,1.55737004]
[1755189704406,1.09523446,118010.0,118000.0,1.64208544]
[1755189704703,0.9893003,118010.0,118000.0,1.64208544]
[1755189704903,1.095233,118010.0,118000.0,1.64208544]
[1755189705106,1.0105248,118010.0,118000.0,1.64208544]
[1755189705292,0.9362648,118010.0,118000.0,1.64208544]
[1755189705697,0.8303321,118010.0,118000.0,1.64208544]
[1755189705898,0.9045921,118010.0,118000.0,1.64208544]
[1755189706095,0.0696921,118010.0,118000.0,1.64208544]
[1755189706403,0.1528727,118020.0,118000.0,2.29279787]
[1755189706613,0.1059327,118020.0,118010.0,0.79295824]
[1755189706804,0.25722851,118020.0,118010.0,1.13339905]
[1755189707003,0.21979906,118020.0,118010.0,1.13339905]
[1755189707804,0.22079906,118020.0,118010.0,1.13339905]
[1755189708303,0.26773906,118020.0,118010.0,1.13339905]
[1755189708509,0.11644325,118020.0,118010.0,1.13339905]
[1755189708900,0.10114425,118020.0,118010.0,0.77259905]
[1755189709098,0.33304425,118020.0,118010.0,1.66984824]
[1755189709297,0.48434006,118020.0,118010.0,1.66984824]
[1755189709705,0.48434006,118020.0,118010.0,0.70825004]
[1755189709903,0.16942,118010.0,117990.0,0.66298469]
[1755189710095,0.0847154,118000.0,117990.0,0.74770559]
[1755189710300,0.0847154,118000.0,117990.0,2.30403563]
[1755189710504,0.19065258,118000.0,117990.0,2.30403563]
[1755189710905,0.23759258,118000.0,117990.0,2.30403563]
[1755189711197,0.15287718,118000.0,117990.0,2.30503563]
[1755189711409,0.15387718,118000.0,117990.0,2.30803563]
[1755189711608,0.07828718,118000.0,117990.0,2.66883563]
[1755189711805,0.07828718,118000.0,117990.0,2.66783563]
[1755189712010,0.07828718,118000.0,117990.0,2.66983563]
[1755189712701,0.07828718,118000.0,117990.0,2.81073563]
[1755189712901,1.65579711,118020.0,118010.0,0.084708]
[1755189713098,0.19823581,118020.0,118010.0,2.00143804]
[1755189713301,0.04694,118020.0,118010.0,2.00143804]
[1755189714111,0.8468325,118040.0,118030.0,0.0846936]
[1755189714304,0.8468325,118040.0,118030.0,1.64046364]
[1755189714514,0.8932225,118040.0,118030.0,1.64046364]
[1755189714904,0.7238364,118040.0,118030.0,1.64046364]
[1755189715303,0.3630364,118040.0,118030.0,1.64046364]
[1755189715606,0.27835,118040.0,118030.0,2.00126364]
[1755189715911,0.2889964,118040.0,118030.0,2.00126364]
[1755189716313,0.2889964,118040.0,118030.0,1.88675688]
[1755189716507,0.1310764,118040.0,118030.0,1.97145048]
[1755189717413,0.20431,118040.0,118030.0,1.97145048]
[1755189717707,0.20631,118040.0,118030.0,1.97145048]
[1755189717913,0.20831,118040.0,118030.0,1.97145048]
[1755189718412,0.20831,118040.0,118030.0,1.76322102]
[1755189718413,0.05039,118040.0,118030.0,1.76322102]
[1755189718612,0.20170533,118040.0,118030.0,1.76322102]
[1755189719711,0.20170533,118040.0,118030.0,0.91570102]
[1755189719911,0.62264533,118040.0,118030.0,1.76350102]
[1755189720108,0.47133,118040.0,118030.0,1.76350102]
[1755189720309,0.47133,118040.0,118030.0,1.2931336]
[1755189720510,0.46933,118040.0,118030.0,1.2951336]
[1755189720912,0.46933,118040.0,118030.0,2.00338364]
[1755189722112,0.23737,118040.0,118030.0,2.00338364]
[1755189722319,0.04639,118040.0,118030.0,2.00338364]
[1755189723910,0.4426266,118040.0,118030.0,1.15674364]
[1755189724116,0.5540166,118040.0,118030.0,2.00310364]
[1755189724314,0.46933,118040.0,118030.0,2.00310364]
[1755189724916,0.5540166,118040.0,118030.0,1.64230364]
[1755189725117,0.5548166,118040.0,118030.0,0.0876936]
[1755189725416,0.9912541,118040.0,118030.0,0.9338137]
[1755189725818,0.9156166,118040.0,118030.0,0.84888]
[1755189726020,0.9912541,118040.0,118030.0,0.84888]
[1755189726216,0.9156166,118040.0,118030.0,0.003]
[1755189726415,0.9912541,118040.0,118030.0,0.84888]
[1755189726618,0.83013,118040.0,118030.0,1.64182374]
[1755189727706,0.9156164,118040.0,118030.0,0.0876937]
[1755189727907,0.9156164,118040.0,118030.0,0.003]
[1755189728118,0.9156164,118040.0,118000.0,0.4455123]
[1755189728119,0.42294,118010.0,118000.0,0.7342765]
[1755189728322,0.46933,118010.0,118000.0,2.28808654]
[1755189728518,0.54479041,118010.0,118000.0,2.28808654]
[1755189729222,0.62949841,118010.0,118000.0,2.20337424]
[1755189729421,0.99029841,118010.0,118000.0,1.11768004]
[1755189729719,0.894146,118010.0,117980.0,0.91809004]
[1755189729916,0.79932481,117990.0,117980.0,0.99180004]
[1755189730118,0.79932481,117990.0,117980.0,1.05516]
[1755189730315,1.21050789,117990.0,117980.0,0.20984]
[1755189730520,0.3630795,117980.0,117970.0,0.0487]
[1755189730728,0.0847367,117970.0,117960.0,0.28355]
[1755189730915,0.3630953,117960.0,117950.0,0.20984]
[1755189731217,0.131141,117950.0,117940.0,0.20984]
[1755189731418,0.3631082,117940.0,117920.0,0.6888247]
[1755189731616,0.43615834,117940.0,117930.0,0.2946054]
[1755189731812,0.52091654,117940.0,117930.0,1.2133954]
[1755189732017,0.79926654,117940.0,117930.0,1.2133954]
[1755189732223,0.7239082,117940.0,117930.0,1.12863]
[1755189732421,0.63915,117940.0,117930.0,1.2133954]
[1755189732819,0.71450834,117940.0,117930.0,1.2133954]
[1755189733024,0.71450834,117940.0,117930.0,1.92364544]
[1755189733418,0.27835,117940.0,117930.0,1.92364544]
[1755189733619,0.33852578,117940.0,117930.0,1.92364544]
[1755189733819,0.33852578,117940.0,117930.0,1.92164544]
[1755189734225,0.27835,117940.0,117930.0,1.92164544]
[1755189734421,0.34500818,117940.0,117930.0,1.92164544]
[1755189734614,0.34600818,117940.0,117930.0,1.92264544]
[1755189735020,0.34600818,117940.0,117930.0,2.28344544]
[1755189735222,0.06765818,117940.0,117930.0,2.28344544]
[1755189737539,0.06765818,117940.0,117930.0,2.28424544]
[1755189738117,0.06765818,117940.0,117930.0,2.28344544]
[1755189738635,0.06765818,117940.0,117930.0,2.28424544]
[1755189740326,0.06765818,117940.0,117930.0,2.28344544]
[1755189740522,0.50800888,117970.0,117960.0,0.368293]
[1755189740733,0.27835,117970.0,117960.0,1.92102304]
[1755189741232,0.8933454,117980.0,117970.0,0.3682858]
[1755189741433,0.7238787,117980.0,117970.0,1.02783584]
[1755189741633,0.63915,117980.0,117970.0,1.07653584]
[1755189741834,0.7622067,117990.0,117980.0,0.3195787]
[1755189742034,0.7622067,117990.0,117980.0,1.78750004]
[1755189742227,0.7622067,117990.0,117980.0,1.00554]
[1755189742228,0.7630067,117990.0,117980.0,1.00554]
[1755189742427,0.8093967,117990.0,117980.0,1.00554]
[1755189742830,0.8093967,117990.0,117980.0,1.00254]
[1755189743225,0.86957248,117990.0,117980.0,1.00254]
[1755189743422,0.78404758,117990.0,117980.0,1.1609787]
[1755189743627,0.78804758,117990.0,117980.0,1.1619787]
[1755189743934,0.7278718,117990.0,117980.0,1.07625]
[1755189744131,0.7360118,117990.0,117980.0,1.86922874]
[1755189744337,0.65129,117990.0,117980.0,1.91751874]
[1755189744733,0.7360114,117990.0,117980.0,1.83279004]
[1755189744932,0.79218718,117990.0,117980.0,1.78450004]
[1755189745138,0.79218718,117990.0,117980.0,1.78550004]
[1755189745730,0.7320114,117990.0,117980.0,1.07625]
[1755189745928,0.79218718,117990.0,117980.0,0.8484]
[1755189746332,0.79318718,117990.0,117980.0,0.8504]
[1755189746532,0.80034613,117990.0,117980.0,0.8504]
[1755189746834,0.86038388,117990.0,117980.0,1.0126]
[1755189747039,0.86038388,117990.0,117980.0,0.8504]
[1755189747735,0.86038388,117990.0,117980.0,1.0126]
[1755189747943,0.86038717,117990.0,117980.0,1.0126]
[1755189748529,1.73894921,117990.0,117980.0,0.006]
[1755189748829,1.75426651,117990.0,117980.0,0.006]
[1755189749237,1.67890817,117990.0,117980.0,0.006]
[1755189749734,0.3737228,117960.0,117950.0,0.01914777]
[1755189749939,0.7345228,117960.0,117950.0,0.86262777]
[1755189750635,0.7345228,117960.0,117950.0,1.02482777]
[1755189751036,0.81057259,117960.0,117950.0,1.03082777]
[1755189751243,0.81057259,117960.0,117950.0,0.02914777]
[1755189751244,0.81157259,117960.0,117950.0,0.02914777]
[1755189751431,0.81157259,117960.0,117950.0,0.87258777]
[1755189751635,0.7365228,117960.0,117950.0,0.87258777]
[1755189751844,0.7365228,117960.0,117950.0,0.02914777]
[1755189752042,0.7365228,117960.0,117950.0,0.87238777]
[1755189752245,0.82130089,117960.0,117950.0,0.87238777]
[1755189752553,0.82030089,117960.0,117950.0,0.86938777]
[1755189752754,0.83787673,117960.0,117950.0,0.86938777]
[1755189753049,0.91292652,117960.0,117950.0,0.86938777]
[1755189753444,1.08248652,117960.0,117950.0,0.86938777]
[1755189753641,1.08248652,117960.0,117920.0,0.99803916]
[1755189753642,0.4585154,117930.0,117920.0,0.23283]
[1755189753950,0.543287,117930.0,117920.0,1.07591]
[1755189754145,0.904087,117930.0,117920.0,1.07591]
[1755189754352,0.96421021,117930.0,117920.0,0.84308]
[1755189754546,0.3737521,117920.0,117910.0,0.18117748]
[1755189754746,0.79469545,117920.0,117910.0,0.01897748]
[1755189754948,0.80970612,117920.0,117910.0,0.86193748]
[1755189755248,0.80970612,117920.0,117910.0,0.84296]
[1755189755451,0.80970612,117920.0,117910.0,1.00516]
[1755189755644,0.82705426,117920.0,117910.0,1.00516]
[1755189755849,0.75190024,117920.0,117910.0,0.84296]
[1755189756350,0.86346399,117920.0,117910.0,0.84596]
[1755189756753,0.86546399,117920.0,117910.0,0.84696]
[1755189757454,0.94061801,117920.0,117910.0,0.84696]
[1755189759750,0.94061801,117920.0,117910.0,1.00916]
[1755189760758,0.94061801,117920.0,117910.0,0.98925906]
[1755189760759,0.86546399,117920.0,117910.0,0.98925906]
[1755189761160,0.9407065,117920.0,117910.0,1.05988906]
[1755189761358,0.8714265,117920.0,117910.0,1.05988906]
[1755189761655,0.9407065,117920.0,117910.0,1.10817906]
[1755189762358,0.92564125,117920.0,117910.0,1.05988906]
[1755189762657,1.11379125,117920.0,117910.0,1.05988906]
[1755189762845,0.7631277,117920.0,117910.0,1.9012086]
[1755189763155,1.0032277,117920.0,117910.0,0.1662]
[1755189763361,1.0032277,117920.0,117910.0,0.84636]
[1755189763756,1.0032277,117920.0,117910.0,1.07919]
[1755189763947,1.0032277,117920.0,117910.0,1.83573004]
[1755189764154,0.38114814,117920.0,117910.0,1.92050954]
[1755189764349,0.02034814,117920.0,117910.0,1.92130954]
[1755189764554,0.02034814,117920.0,117910.0,2.28210954]
[1755189765165,0.12779034,117930.0,117920.0,0.3480523]
[1755189765466,0.06761308,117930.0,117920.0,1.41710234]
[1755189765663,0.06017726,117940.0,117920.0,1.32416234]
[1755189765858,0.06017726,117940.0,117930.0,1.89765524]
[1755189766568,0.59048076,117950.0,117940.0,0.347238]
[1755189766768,0.59048076,117950.0,117940.0,1.05448804]
[1755189767268,0.87946076,117950.0,117940.0,0.23183]
[1755189767655,0.87946076,117950.0,117940.0,1.07483]
[1755189767859,0.88246076,117950.0,117940.0,1.07583]
[1755189768767,0.8222835,117950.0,117940.0,1.07583]
[1755189768964,0.89752601,117950.0,117940.0,1.07583]
[1755189769868,0.89752601,117950.0,117940.0,1.0052]
[1755189770066,1.08567601,117950.0,117940.0,1.0052]
[1755189770270,1.0104335,117950.0,117940.0,1.00488]
[1755189770465,1.0104335,117950.0,117940.0,1.00588]
[1755189771463,1.0104335,117950.0,117940.0,1.07651]
[1755189772062,1.08568318,117950.0,117940.0,1.81441004]
[1755189772664,0.57268058,117950.0,117940.0,1.89916804]
[1755189773170,0.07824968,117950.0,117940.0,2.25996804]
[1755189773366,0.14797526,117950.0,117940.0,1.89916804]
[1755189773562,0.0877508,117950.0,117940.0,1.89916804]
[1755189773765,0.003,117950.0,117940.0,1.89916804]
[1755189774073,0.11234903,117950.0,117940.0,1.89916804]
[1755189774870,0.19709983,117950.0,117940.0,2.25996804]
[1755189775173,0.1368608,117950.0,117940.0,1.89916804]
[1755189775364,0.05211,117950.0,117940.0,1.89916804]
[1755189775565,0.11238833,117950.0,117940.0,1.89916804]
[1755189775762,0.11238833,117950.0,117940.0,2.25996804]
[1755189776073,0.19713913,117950.0,117940.0,1.89916804]
[1755189776279,0.06327833,117950.0,117940.0,2.2769464]
[1755189776866,0.07824968,117950.0,117940.0,2.2769464]
[1755189777161,0.16300048,117950.0,117940.0,2.2769464]
[1755189777671,0.07824968,117950.0,117940.0,2.4178464]
[1755189777973,0.16300048,117950.0,117940.0,2.2769464]
[1755189778268,0.21211048,117950.0,117940.0,2.2769464]
[1755189778473,0.21211048,117950.0,117940.0,2.5398464]
[1755189778875,0.21211048,117950.0,117940.0,0.69698711]
[1755189778876,0.66929339,117950.0,117940.0,0.69698711]
[1755189779074,1.10550449,117950.0,117940.0,1.53774711]
[1755189779260,0.6391919,117950.0,117940.0,1.62250501]
[1755189779467,0.5637808,117950.0,117940.0,1.62250501]
[1755189779769,1.0000062,117950.0,117940.0,1.53774711]
[1755189780162,1.0000062,117950.0,117940.0,1.55470287]
[1755189780469,0.5664662,117950.0,117940.0,1.63946087]
[1755189780665,0.2917862,117950.0,117940.0,2.34771091]
[1755189780877,0.1631762,117950.0,117940.0,2.34771091]
[1755189781369,0.5239762,117950.0,117940.0,2.34771091]
[1755189781575,0.2122862,117950.0,117940.0,2.26295291]
[1755189781777,0.2122862,117950.0,117940.0,2.34771081]
[1755189782074,0.4976608,117950.0,117940.0,2.1483702]
[1755189782278,0.1368608,117950.0,117940.0,2.0869658]
[1755189782571,0.4976608,117950.0,117940.0,2.1166158]
[1755189782772,0.9245808,117950.0,117940.0,0.53847576]
[1755189782969,1.03098683,117950.0,117940.0,1.10302]
[1755189783271,0.2500123,117920.0,117910.0,1.2426]
[1755189783477,0.40502294,117920.0,117910.0,1.1835195]
[1755189783777,0.3295923,117920.0,117910.0,1.92141954]
[1755189783973,0.3295923,117920.0,117910.0,1.83664004]
[1755189784178,0.6664052,117920.0,117910.0,1.96774004]
[1755189784365,1.0272052,117920.0,117910.0,1.25949]
[1755189784568,0.7268923,117920.0,117910.0,0.003]
[1755189784771,0.7268923,117920.0,117910.0,1.00379]
[1755189784976,0.8324952,117920.0,117910.0,1.00379]
[1755189785275,0.8324952,117920.0,117910.0,1.00079]
[1755189785573,0.8325178,117920.0,117910.0,1.05301231]
[1755189786371,0.8335178,117920.0,117910.0,1.05601231]
[1755189786871,0.7278923,117920.0,117910.0,1.05601231]
[1755189787180,0.83355014,117920.0,117910.0,1.05601231]
[1755189787472,1.63265234,117920.0,117910.0,0.003]
[1755189787675,0.1339039,117890.0,117880.0,0.78017]
[1755189787874,0.209386,117890.0,117880.0,0.44902]
[1755189788081,0.209386,117890.0,117880.0,1.28866]
[1755189788275,0.209386,117890.0,117880.0,1.99691004]
[1755189788766,0.570186,117890.0,117880.0,1.99691004]
[1755189788969,0.4947039,117890.0,117880.0,1.99691004]
[1755189789377,1.02730176,117890.0,117880.0,1.25905]
[1755189789775,1.02830176,117890.0,117880.0,1.26405]
[1755189790474,0.9226239,117890.0,117880.0,1.97730004]
[1755189790674,0.9226239,117890.0,117880.0,1.97230004]
[1755189791075,0.9216239,117890.0,117880.0,1.96730004]
[1755189791383,0.9246239,117890.0,117880.0,1.96830004]
[1755189793576,0.9246239,117890.0,117880.0,1.99795004]
[1755189793781,0.98504856,117890.0,117880.0,1.99795004]
[1755189794083,0.9246239,117890.0,117880.0,1.99795004]
[1755189794284,0.98504856,117890.0,117880.0,1.99795004]
[1755189795981,0.9246239,117890.0,117880.0,1.99795004]
[1755189796178,1.03030176,117890.0,117880.0,1.99795004]
[1755189796379,1.09842612,117890.0,117880.0,1.99795004]
[1755189796581,0.99274826,117890.0,117880.0,1.99795004]
[1755189799088,1.06816908,117890.0,117880.0,1.99795004]
[1755189800690,1.06816908,117890.0,117880.0,1.96830004]
[1755189800886,1.06816908,117890.0,117880.0,0.35125]
[1755189801088,0.2544525,117860.0,117850.0,0.44902]
[1755189801393,0.3035625,117860.0,117850.0,1.28754]
[1755189801690,0.27903982,117860.0,117850.0,1.28754]
[1755189801993,0.27903982,117860.0,117850.0,1.99579004]
[1755189801994,0.63983982,117860.0,117850.0,1.99579004]
[1755189802390,0.67553932,117870.0,117850.0,1.92263673]
[1755189802593,0.67553932,117870.0,117860.0,1.15627004]
[1755189802786,0.67553932,117870.0,117860.0,1.24108554]
[1755189803088,0.59072482,117870.0,117860.0,1.24108554]
[1755189803294,0.59067398,117870.0,117860.0,1.15527004]
[1755189803494,0.59067398,117870.0,117860.0,0.44702]
[1755189803681,1.06770398,117870.0,117860.0,0.41937]
[1755189803883,1.007459,117870.0,117860.0,1.25765]
[1755189804082,1.008459,117870.0,117860.0,1.25965]
[1755189804592,0.42303873,117870.0,117860.0,2.05271554]
[1755189804791,0.42303873,117870.0,117860.0,2.05351554]
[1755189804989,0.3608,117880.0,117860.0,2.58394184]
[1755189805193,0.3608,117880.0,117870.0,1.21439834]
[1755189805381,0.38275199,117890.0,117870.0,1.21439834]
[1755189805382,0.48916309,117890.0,117870.0,1.15131034]
[1755189805582,0.50434518,117890.0,117880.0,1.93824114]
[1755189805786,0.14354518,117890.0,117880.0,1.93904114]
[1755189806179,0.11589518,117890.0,117880.0,2.29984114]
[1755189806384,0.10567786,117900.0,117890.0,0.3147039]
[1755189806688,0.10567786,117900.0,117890.0,1.02195394]
[1755189806988,0.72082906,117910.0,117890.0,1.11852854]
[1755189807194,0.92777906,117910.0,117900.0,1.61722004]
[1755189807391,1.13832906,117910.0,117900.0,1.61722004]
[1755189807695,1.13832906,117910.0,117900.0,1.66599004]
[1755189808194,1.0326512,117910.0,117900.0,1.66599004]
[1755189808396,1.0336512,117910.0,117900.0,1.66799004]
[1755189808582,1.13932906,117910.0,117900.0,1.66799004]
[1755189808988,1.0336512,117910.0,117900.0,1.66799004]
[1755189809394,1.13932906,117910.0,117900.0,1.66799004]
[1755189809594,1.13932906,117910.0,117900.0,1.66999004]
[1755189809896,1.07172906,117910.0,117900.0,1.67099004]
[1755189810088,0.24018756,117910.0,117900.0,1.75577674]
[1755189810284,0.54135756,117910.0,117900.0,1.0901]
[1755189810597,1.01488756,117910.0,117900.0,1.79835004]
[1755189810787,1.01488756,117910.0,117900.0,1.8139811]
[1755189811394,0.94728756,117910.0,117900.0,1.8139811]
[1755189811587,0.24018756,117910.0,117900.0,1.8139811]
[1755189811789,0.39840756,117910.0,117900.0,1.8139811]
[1755189812096,0.5484097,117910.0,117900.0,1.67945378]
[1755189812695,0.9092097,117910.0,117900.0,1.67945378]
[1755189815500,0.15533981,117910.0,117900.0,1.76424038]
[1755189815699,0.10660981,117910.0,117900.0,1.76424038]
[1755189816094,0.15533981,117910.0,117900.0,1.76424038]
[1755189817195,0.10660981,117910.0,117900.0,2.12504038]
[1755189817397,0.9257016,117930.0,117920.0,0.3349123]
[1755189817398,0.3608,117930.0,117920.0,0.3349123]
[1755189817592,0.4942951,117930.0,117920.0,1.79515004]
[1755189817799,0.9081951,117930.0,117920.0,1.79515004]
[1755189817993,0.9081951,117930.0,117920.0,1.0869]
[1755189818302,0.9081951,117930.0,117920.0,1.00726]
[1755189818689,0.75583,117930.0,117920.0,1.71551004]
[1755189818893,0.40953,117930.0,117920.0,1.78038348]
[1755189819095,0.41053,117930.0,117920.0,1.69561118]
[1755189819297,0.4962951,117930.0,117920.0,1.69661118]
[1755189819497,1.06151043,117930.0,117920.0,1.53614717]
[1755189820302,1.06151043,117930.0,117920.0,0.75588713]
[1755189820600,1.06151043,117930.0,117920.0,0.73551012]
[1755189820801,1.06231043,117930.0,117920.0,0.002]
[1755189821096,0.0847795,117910.0,117900.0,0.2629]
[1755189821297,0.0847795,117910.0,117900.0,0.83628]
[1755189821298,1.2690095,117910.0,117900.0,0.83628]
[1755189822205,1.2690095,117910.0,117900.0,0.72164301]
[1755189822495,1.2690095,117910.0,117900.0,0.75092301]
[1755189822699,1.28793653,117910.0,117900.0,0.72364301]
[1755189822890,1.43982794,117910.0,117900.0,0.002]
[1755189823096,2.14807798,117910.0,117900.0,0.83808]
[1755189823595,2.0971848,117910.0,117900.0,0.002]
[1755189823898,2.0971848,117910.0,117900.0,0.006]
[1755189823899,2.0981848,117910.0,117900.0,0.006]
[1755189824099,1.58693987,117910.0,117900.0,0.006]
[1755189824498,1.57075568,117910.0,117900.0,0.004]
[1755189824702,1.48694164,117910.0,117900.0,0.004]